bitfinex/quotes_BTCUSD_20240605
["timestamp","ask_amount","ask_price","bid_price","bid_amount"]
[1717548911420,0.004,70896.0,70892.0,0.01564174]
[1717548911625,0.24881392,70899.0,70893.0,0.2377]
[1717548911805,0.004,70894.0,70893.0,0.2377]
[1717548912246,0.141059,70892.0,70891.0,0.1712]
[1717548912424,0.14382692,70892.0,70891.0,0.1712]
[1717548912800,0.14382692,70892.0,70891.0,0.1722]
[1717548914083,0.14382692,70892.0,70891.0,0.1702]
[1717548915016,0.14782692,70892.0,70891.0,0.1712]
[1717548915253,0.004,70892.0,70891.0,0.2526]
[1717548915448,0.004,70892.0,70891.0,0.565461]
[1717548915603,0.004,70892.0,70891.0,0.555461]
[1717548915808,0.007,70892.0,70891.0,0.57269308]
[1717548917033,0.004,70892.0,70891.0,0.57269308]
[1717548917237,0.004,70892.0,70891.0,0.58669308]
[1717548917727,0.00276792,70907.0,70897.0,0.01]
[1717548917927,0.00276792,70907.0,70905.0,0.1682]
[1717548918240,0.00276792,70906.0,70905.0,0.1682]
[1717548918692,0.1,70908.0,70905.0,0.1682]
[1717548919016,0.005,70907.0,70905.0,0.1682]
[1717548919128,0.10776792,70907.0,70905.0,0.1682]
[1717548919530,0.109,70907.0,70905.0,0.1692]
[1717548920178,0.104,70907.0,70905.0,0.1692]
[1717548920640,0.004,70907.0,70905.0,0.3202]
[1717548921084,0.004,70907.0,70905.0,0.3192]
[1717548921292,0.00276792,70914.0,70905.0,0.3182]
[1717548921527,0.005,70907.0,70905.0,0.151]
[1717548921721,0.005,70907.0,70906.0,0.1682]
[1717548921722,0.009,70907.0,70906.0,0.1682]
[1717548921891,0.004,70907.0,70906.0,0.1682]
[1717548922347,0.009,70907.0,70906.0,0.1682]
[1717548922902,0.005,70907.0,70906.0,0.1682]
[1717548923535,0.00276792,70911.0,70906.0,0.1682]
[1717548923730,0.00276792,70908.0,70906.0,0.1682]
[1717548923940,0.00776792,70907.0,70906.0,0.1682]
[1717548924469,0.00776792,70907.0,70906.0,0.1692]
[1717548924470,0.14779692,70907.0,70906.0,0.1692]
[1717548924913,0.14379692,70907.0,70906.0,0.1692]
[1717548925112,0.14379692,70907.0,70906.0,0.1702]
[1717548925241,0.14379692,70907.0,70906.0,0.1692]
[1717548925451,0.14379692,70907.0,70906.0,0.1682]
[1717548925650,0.14779692,70907.0,70906.0,0.1692]
[1717548926129,0.29221585,70907.0,70906.0,0.1692]
[1717548926310,0.54271585,70907.0,70906.0,0.001]
[1717548926516,0.56271585,70907.0,70906.0,0.001]
[1717548926743,0.84977485,70907.0,70906.0,0.001]
[1717548927277,0.86631395,70907.0,70906.0,0.001]
[1717548927477,0.00276792,70895.0,70894.0,0.1682]
[1717548928497,0.14382092,70895.0,70894.0,0.1682]
[1717548928722,0.30832092,70895.0,70894.0,0.1682]
[1717548929163,0.31932092,70895.0,70894.0,0.1692]
[1717548929943,0.32632092,70895.0,70894.0,0.1692]
[1717548930523,0.47073985,70895.0,70894.0,0.001]
[1717548930908,0.57073985,70895.0,70894.0,0.001]
[1717548931282,0.58073985,70895.0,70894.0,0.001]
[1717548931687,0.59073985,70895.0,70894.0,0.001]
[1717548931919,0.87284685,70895.0,70894.0,0.001]
[1717548932564,0.57073985,70895.0,70894.0,0.001]
[1717548932762,0.85284685,70895.0,70894.0,0.001]
[1717548932993,0.87284685,70895.0,70894.0,0.001]
[1717548933762,1.61916085,70895.0,70894.0,0.001]
[1717548934081,0.54594592,70892.0,70891.0,0.002946]
[1717548934280,0.14386492,70873.0,70871.0,0.07422824]
[1717548934447,0.14386692,70872.0,70871.0,0.002]
[1717548935325,0.29546692,70872.0,70871.0,0.002]
[1717548935760,0.57766492,70872.0,70871.0,0.002]
[1717548936008,0.82208385,70872.0,70871.0,0.002]
[1717548936702,1.12428185,70872.0,70871.0,0.002]
[1717548936937,1.12428185,70872.0,70871.0,0.003]
[1717548936938,1.13628185,70872.0,70871.0,0.003]
[1717548937595,1.13828185,70872.0,70871.0,0.002]
[1717548937808,1.15228185,70872.0,70871.0,0.003]
[1717548938027,1.13828185,70872.0,70871.0,0.003]
[1717548938235,1.15228185,70872.0,70871.0,0.003]
[1717548938473,1.13828185,70872.0,70871.0,0.002]
[1717548938681,1.13828185,70872.0,70871.0,0.003]
[1717548938893,1.13228185,70872.0,70871.0,0.003]
[1717548939334,1.12828185,70872.0,70871.0,0.003]
[1717548939554,1.13828185,70872.0,70871.0,0.003]
[1717548940015,1.10428185,70872.0,70871.0,0.002]
[1717548940240,1.11828185,70872.0,70871.0,0.003]
[1717548940443,1.15228185,70872.0,70871.0,0.003]
[1717548941024,0.83608385,70872.0,70871.0,0.002]
[1717548941469,0.38551793,70872.0,70871.0,0.002]
[1717548941675,0.24386692,70872.0,70871.0,0.002]
[1717548941891,0.27186692,70872.0,70871.0,0.003]
[1717548942093,0.41628585,70872.0,70871.0,0.003]
[1717548942220,0.70848385,70872.0,70871.0,0.003]
[1717548942436,1.16508185,70872.0,70871.0,0.003]
[1717548942810,1.13708185,70872.0,70871.0,0.003]
[1717548943213,1.13708185,70872.0,70871.0,0.002]
[1717548943393,1.15108185,70872.0,70871.0,0.003]
[1717548943828,1.15108185,70872.0,70871.0,0.002]
[1717548944027,1.13708185,70872.0,70871.0,0.002]
[1717548944255,1.15108185,70872.0,70871.0,0.003]
[1717548944608,1.15108185,70872.0,70871.0,0.002]
[1717548944995,1.16508185,70872.0,70871.0,0.003]
[1717548945211,1.13708185,70872.0,70871.0,0.003]
[1717548945371,1.13108185,70872.0,70871.0,0.003]
[1717548945579,0.84888385,70872.0,70871.0,0.003]
[1717548945784,0.83488385,70872.0,70871.0,0.003]
[1717548946193,0.84888385,70872.0,70871.0,0.003]
[1717548946398,0.82088385,70872.0,70871.0,0.002]
[1717548946595,0.83488385,70872.0,70871.0,0.003]
[1717548946799,0.84888385,70872.0,70871.0,0.003]
[1717548947060,0.85888385,70872.0,70871.0,0.003]
[1717548947229,0.69448385,70872.0,70871.0,0.002]
[1717548947445,0.69448385,70872.0,70871.0,0.003]
[1717548947446,0.71848385,70872.0,70871.0,0.003]
[1717548948036,0.70448385,70872.0,70871.0,0.003]
[1717548948233,0.83938385,70872.0,70871.0,0.003]
[1717548948433,0.68448385,70872.0,70871.0,0.003]
[1717548948805,0.69848385,70872.0,70871.0,0.003]
[1717548949262,0.71248385,70872.0,70871.0,0.003]
[1717548949482,0.269099,70872.0,70871.0,0.1702]
[1717548949721,0.25786692,70872.0,70871.0,0.1712]
[1717548950175,0.255099,70872.0,70871.0,0.1702]
[1717548950391,0.25786692,70872.0,70871.0,0.1702]
[1717548950610,0.27186692,70872.0,70871.0,0.1712]
[1717548950832,0.92481593,70872.0,70871.0,0.003]
[1717548951059,1.71546519,70872.0,70871.0,0.002]
[1717548951316,0.14390692,70852.0,70849.0,0.077546]
[1717548952471,0.28832585,70852.0,70849.0,0.077546]
[1717548952692,0.67060385,70852.0,70849.0,0.000946]
[1717548952904,0.69460385,70852.0,70849.0,0.000946]
[1717548953571,0.68460385,70852.0,70849.0,0.000946]
[1717548954357,0.67060385,70852.0,70849.0,0.000946]
[1717548954567,0.69860385,70852.0,70851.0,0.003]
[1717548954865,0.70860385,70852.0,70851.0,0.003]
[1717548955066,0.69460385,70852.0,70851.0,0.002]
[1717548955335,0.74274817,70852.0,70851.0,0.003]
[1717548955748,0.75674817,70852.0,70851.0,0.003]
[1717548957207,1.02502617,70852.0,70851.0,0.002]
[1717548957384,1.03902617,70852.0,70851.0,0.003]
[1717548957586,1.05302617,70852.0,70851.0,0.003]
[1717548957795,1.0739591,70852.0,70851.0,0.003]
[1717548957971,1.02502617,70852.0,70851.0,0.002]
[1717548958175,1.05602617,70852.0,70851.0,0.003]
[1717548958371,1.05202617,70852.0,70851.0,0.003]
[1717548958799,1.07602617,70852.0,70851.0,0.003]
[1717548959117,1.06202617,70852.0,70851.0,0.003]
[1717548959318,1.02388185,70852.0,70851.0,0.003]
[1717548959495,1.03788185,70852.0,70851.0,0.003]
[1717548959700,1.46495985,70852.0,70851.0,0.002]
[1717548959877,1.51710417,70852.0,70851.0,0.003]
[1717548960058,1.77304099,70852.0,70851.0,0.0015851]
[1717548960258,2.23884099,70852.0,70851.0,0.0015851]
[1717548960463,2.39237799,70852.0,70851.0,0.0005851]
[1717548960975,2.35561007,70852.0,70851.0,0.0025311]
[1717548961180,2.55343499,70852.0,70851.0,0.0025311]
[1717548961378,2.51943499,70852.0,70851.0,0.0015311]
[1717548961766,2.53343499,70852.0,70851.0,0.0015311]
[1717548961967,2.51943499,70852.0,70851.0,0.0015311]
[1717548963477,2.54429702,70852.0,70851.0,0.0015311]
[1717548963771,2.34429702,70852.0,70851.0,0.0015311]
[1717548963963,2.28714102,70852.0,70851.0,0.0015311]
[1717548964368,1.53471176,70852.0,70851.0,0.0015311]
[1717548964562,1.55471176,70852.0,70851.0,0.0015311]
[1717548964739,1.65471176,70852.0,70851.0,0.0015311]
[1717548964944,2.04471176,70852.0,70851.0,0.0015311]
[1717548965154,2.14471176,70852.0,70851.0,0.0015311]
[1717548965952,2.80021776,70852.0,70851.0,0.0015311]
[1717548966566,2.69326376,70852.0,70851.0,0.0015311]
[1717548966763,2.83838163,70852.0,70851.0,0.0015311]
[1717548967225,2.06137376,70852.0,70851.0,0.0015311]
[1717548967426,2.26137376,70852.0,70851.0,0.0015311]
[1717548967763,1.82677376,70852.0,70851.0,0.0015311]
[1717548968179,1.90557376,70852.0,70851.0,0.0015311]
[1717548968570,1.78891176,70852.0,70851.0,0.0015311]
[1717548969010,1.71011176,70852.0,70851.0,0.0015311]
[1717548969213,1.56524973,70852.0,70851.0,0.0015311]
[1717548969413,1.57524973,70852.0,70851.0,0.0015311]
[1717548969616,1.47524973,70852.0,70851.0,0.0015311]
[1717548971081,0.68769373,70852.0,70851.0,0.0015311]
[1717548971319,0.98997173,70852.0,70851.0,0.0015311]
[1717548971958,1.64734973,70852.0,70851.0,0.0015311]
[1717548972336,2.32585573,70852.0,70851.0,0.0015311]
[1717548972485,2.15671973,70852.0,70851.0,0.0015311]
[1717548973225,1.31081092,70847.0,70846.0,0.00948199]
[1717548973441,1.67822985,70847.0,70846.0,0.00948199]
[1717548973981,1.47822985,70847.0,70846.0,0.00948199]
[1717548974354,1.67822985,70847.0,70846.0,0.00948199]
[1717548974720,1.45522985,70847.0,70846.0,0.00948199]
[1717548975960,1.47822985,70847.0,70846.0,0.00948199]
[1717548977115,1.697604,70847.0,70846.0,0.00948199]
[1717548977317,1.697604,70847.0,70846.0,9.9e-07]
[1717548977720,1.35522985,70847.0,70846.0,9.9e-07]
[1717548977927,1.17293185,70847.0,70846.0,9.9e-07]
[1717548978132,1.07293185,70847.0,70846.0,9.9e-07]
[1717548978336,1.17293185,70847.0,70846.0,9.9e-07]
[1717548978762,1.37293185,70847.0,70846.0,9.9e-07]
[1717548978881,1.17293185,70847.0,70846.0,9.9e-07]
[1717548979083,1.19593185,70847.0,70846.0,9.9e-07]
[1717548979302,1.39593185,70847.0,70846.0,9.9e-07]
[1717548979515,1.67822985,70847.0,70846.0,9.9e-07]
[1717548979715,1.47822985,70847.0,70846.0,9.9e-07]
[1717548979929,1.67822985,70847.0,70846.0,9.9e-07]
[1717548980354,1.47822985,70847.0,70846.0,9.9e-07]
[1717548980767,1.67822985,70847.0,70846.0,9.9e-07]
[1717548984228,1.82334772,70847.0,70846.0,9.9e-07]
[1717548985521,2.22334772,70847.0,70846.0,9.9e-07]
[1717548985733,2.07822985,70847.0,70846.0,9.9e-07]
[1717548985940,2.1154424,70847.0,70846.0,9.9e-07]
[1717548986321,2.07822985,70847.0,70846.0,9.9e-07]
[1717548986530,1.97822985,70847.0,70846.0,9.9e-07]
[1717548986940,2.07822985,70847.0,70846.0,9.9e-07]
[1717548987171,2.27822985,70847.0,70846.0,9.9e-07]
[1717548987295,2.31548358,70847.0,70846.0,9.9e-07]
[1717548990273,2.3375567,70847.0,70846.0,9.9e-07]
[1717548990883,2.2375567,70847.0,70846.0,9.9e-07]
[1717548991344,2.3197024,70847.0,70846.0,9.9e-07]
[1717548991575,2.0375567,70847.0,70846.0,9.9e-07]
[1717548991777,2.1375567,70847.0,70846.0,9.9e-07]
[1717548992526,2.3375567,70847.0,70846.0,9.9e-07]
[1717548992725,1.50085292,70844.0,70843.0,1e-08]
[1717548993086,1.8275992,70844.0,70843.0,1e-08]
[1717548994376,1.80552558,70844.0,70843.0,1e-08]
[1717548994575,1.64484387,70844.0,70843.0,1e-08]
[1717548995369,1.62760494,70844.0,70843.0,1e-08]
[1717548996155,1.82760494,70844.0,70843.0,1e-08]
[1717548996358,1.84864905,70844.0,70843.0,1e-08]
[1717548996621,2.11562384,70844.0,70843.0,1e-08]
[1717548996799,2.19980027,70844.0,70843.0,1e-08]
[1717548997002,2.11562384,70844.0,70843.0,1e-08]
[1717548999528,2.25281597,70844.0,70843.0,1e-08]
[1717549000496,2.37908061,70844.0,70843.0,1e-08]
[1717549000717,2.32458909,70844.0,70843.0,1e-08]
[1717549000915,2.25268907,70844.0,70843.0,1e-08]
[1717549002572,1.97037907,70844.0,70843.0,1e-08]
[1717549003287,2.25268907,70844.0,70843.0,1e-08]
[1717549003721,2.54640694,70844.0,70843.0,1e-08]
[1717549004726,2.40128907,70844.0,70843.0,1e-08]
[1717549006171,2.48258907,70844.0,70843.0,1e-08]
[1717549006340,2.65070537,70844.0,70843.0,1e-08]
[1717549006553,0.82870292,70828.0,70827.0,0.1621]
[1717549006685,1.17667663,70828.0,70827.0,0.1621]
[1717549007087,1.1132492,70828.0,70827.0,0.1621]
[1717549007972,1.3956232,70828.0,70827.0,0.1621]
[1717549008152,1.45903769,70828.0,70827.0,0.1621]
[1717549009327,1.45903769,70828.0,70823.0,0.16928199]
[1717549009328,1.11109092,70827.0,70823.0,0.16928199]
[1717549009503,1.3956372,70827.0,70823.0,0.16928199]
[1717549010618,1.3956372,70827.0,70824.0,0.07222824]
[1717549011887,1.3756372,70827.0,70824.0,0.07222824]
[1717549012084,1.3856372,70827.0,70824.0,0.07222824]
[1717549012295,1.3956372,70827.0,70824.0,0.07222824]
[1717549012879,1.3956372,70827.0,70823.0,0.16928199]
[1717549013089,1.43806079,70827.0,70823.0,0.16928199]
[1717549013499,1.41806079,70827.0,70823.0,0.16928199]
[1717549013699,1.43806079,70827.0,70823.0,0.16928199]
[1717549013911,1.3957973,70827.0,70823.0,0.16928199]
[1717549014163,1.43805932,70827.0,70823.0,0.16928199]
[1717549014583,1.43805932,70827.0,70826.0,0.00948199]
[1717549015027,1.43805883,70827.0,70826.0,0.00948199]
[1717549015179,1.3957973,70827.0,70826.0,0.00948199]
[1717549015386,1.43806113,70827.0,70826.0,0.00948199]
[1717549016206,1.3957973,70827.0,70826.0,0.00948199]
[1717549017874,1.45918959,70827.0,70826.0,0.00948199]
[1717549019936,1.43918959,70827.0,70826.0,0.00948199]
[1717549020752,1.3757973,70827.0,70826.0,0.00948199]
[1717549021194,1.37579479,70827.0,70826.0,0.00948199]
[1717549021400,1.41807952,70827.0,70826.0,0.00948199]
[1717549021610,1.0329336,70827.0,70826.0,0.00948199]
[1717549021808,1.03570152,70827.0,70826.0,0.15218199]
[1717549022035,0.99341679,70827.0,70826.0,0.15218199]
[1717549023545,0.42589287,70827.0,70826.0,0.15218199]
[1717549023773,0.66798593,70827.0,70826.0,0.31478199]
[1717549024283,0.38837585,70827.0,70826.0,0.31478199]
[1717549024488,0.38560793,70827.0,70826.0,0.31478199]
[1717549024695,0.38837585,70827.0,70826.0,0.31478199]
[1717549025300,0.38560793,70827.0,70826.0,0.31478199]
[1717549025510,0.38837585,70827.0,70826.0,0.31478199]
[1717549026049,0.67075385,70827.0,70826.0,0.31478199]
[1717549026459,0.68797753,70827.0,70826.0,0.31478199]
[1717549026666,0.71097753,70827.0,70826.0,0.31478199]
[1717549030128,0.71097753,70827.0,70826.0,0.24778199]
[1717549032097,0.75328997,70827.0,70826.0,0.24778199]
[1717549033121,0.75325196,70827.0,70826.0,0.24778199]
[1717549033756,0.75325466,70827.0,70826.0,0.24778199]
[1717549033924,0.71093961,70827.0,70826.0,0.24778199]
[1717549034504,0.75325606,70827.0,70826.0,0.24778199]
[1717549034707,0.71093961,70827.0,70826.0,0.24778199]
[1717549034909,0.75325552,70827.0,70826.0,0.24778199]
[1717549035309,0.71093961,70827.0,70826.0,0.24778199]
[1717549035536,0.75325552,70827.0,70826.0,0.24778199]
[1717549035911,0.75325741,70827.0,70826.0,0.24778199]
[1717549036312,0.71093961,70827.0,70826.0,0.24778199]
[1717549036527,0.68517169,70827.0,70826.0,0.24778199]
[1717549036741,0.40279369,70827.0,70826.0,0.24778199]
[1717549036950,0.38560793,70827.0,70826.0,0.24778199]
[1717549039987,0.38837585,70827.0,70826.0,0.24778199]
[1717549041312,0.38837585,70827.0,70826.0,0.31478199]
[1717549042744,0.38560793,70827.0,70826.0,0.31478199]
[1717549043041,0.38837585,70827.0,70826.0,0.31478199]
[1717549045981,0.38837585,70827.0,70826.0,0.24778199]
[1717549046200,0.38837585,70827.0,70826.0,0.31478199]
[1717549046418,0.38560793,70827.0,70826.0,0.31478199]
[1717549047467,0.38837585,70827.0,70826.0,0.31478199]
[1717549047867,0.38560793,70827.0,70826.0,0.31478199]
[1717549052677,0.38837585,70827.0,70826.0,0.24778199]
[1717549053086,0.67075385,70827.0,70826.0,0.00948199]
[1717549053305,0.69375385,70827.0,70826.0,0.00948199]
[1717549053511,0.7112505,70827.0,70826.0,0.00948199]
[1717549053714,0.68548258,70827.0,70826.0,0.08798199]
[1717549053916,0.68548258,70827.0,70826.0,0.15498199]
[1717549053917,0.748939,70827.0,70826.0,0.15498199]
[1717549054131,0.6882505,70827.0,70826.0,0.08798199]
[1717549054735,0.6882505,70827.0,70826.0,0.00948199]
[1717549054954,0.7112505,70827.0,70826.0,0.00948199]
[1717549055800,0.7535564,70827.0,70826.0,0.00948199]
[1717549056205,0.75355796,70827.0,70826.0,0.00948199]
[1717549056424,0.77470749,70827.0,70826.0,0.00948199]
[1717549056626,0.85120749,70827.0,70826.0,0.00948199]
[1717549056831,0.85126964,70827.0,70826.0,0.00948199]
[1717549058514,0.71130656,70827.0,70826.0,0.00948199]
[1717549058661,0.75361623,70827.0,70826.0,0.00948199]
[1717549058885,0.40316064,70827.0,70826.0,0.00948199]
[1717549059100,0.40592856,70827.0,70826.0,0.00948199]
[1717549060141,0.68553864,70827.0,70826.0,0.00948199]
[1717549060340,0.99368456,70827.0,70826.0,0.00948199]
[1717549060897,1.078302,70827.0,70826.0,0.00948199]
[1717549062500,0.99368456,70827.0,70826.0,0.00948199]
[1717549062957,1.07832138,70827.0,70826.0,0.00948199]
[1717549063317,1.07832204,70827.0,70826.0,0.00948199]
[1717549063692,0.99368456,70827.0,70826.0,0.00948199]
[1717549063896,0.99368456,70827.0,70826.0,0.00551855]
[1717549064096,1.07832204,70827.0,70826.0,0.00551855]
[1717549065185,0.99368456,70827.0,70826.0,0.00551855]
[1717549065570,1.07832204,70827.0,70826.0,0.00551855]
[1717549065774,0.99368456,70827.0,70826.0,0.00551855]
[1717549066379,1.0783241,70827.0,70826.0,0.00551855]
[1717549066642,0.99368456,70827.0,70826.0,0.00551855]
[1717549067579,0.99385188,70827.0,70826.0,0.00551855]
[1717549068298,1.09962368,70827.0,70826.0,0.00551855]
[1717549068547,1.09965072,70827.0,70826.0,0.00551855]
[1717549068695,0.99385188,70827.0,70826.0,0.00551855]
[1717549069608,1.05732397,70827.0,70826.0,0.00551855]
[1717549070012,1.15732397,70827.0,70826.0,0.00551855]
[1717549070229,1.09385188,70827.0,70826.0,0.00551855]
[1717549070629,1.10385188,70827.0,70826.0,0.00551855]
[1717549070834,1.11385188,70827.0,70826.0,0.00551855]
[1717549071243,1.10385188,70827.0,70826.0,0.00551855]
[1717549071703,1.09385188,70827.0,70826.0,0.00551855]
[1717549071848,1.10385188,70827.0,70826.0,0.00551855]
[1717549072689,1.09385188,70827.0,70826.0,0.00551855]
[1717549073870,1.10385188,70827.0,70826.0,0.00551855]
[1717549075815,1.1573191,70827.0,70826.0,0.00551855]
[1717549076416,1.09385188,70827.0,70826.0,0.00551855]
[1717549077443,1.1573191,70827.0,70826.0,0.00551855]
[1717549080783,1.15717582,70827.0,70826.0,0.00551855]
[1717549083050,1.17717138,70827.0,70826.0,0.00551855]
[1717549084017,1.15717138,70827.0,70826.0,0.00551855]
[1717549084216,1.16717138,70827.0,70826.0,0.00551855]
[1717549084620,1.3960866,70827.0,70826.0,0.00551855]
[1717549084826,1.44334815,70827.0,70826.0,0.00551855]
[1717549085038,1.60904077,70827.0,70826.0,0.00551855]
[1717549085465,1.48116363,70827.0,70826.0,0.00551855]
[1717549086503,1.6095465,70827.0,70826.0,0.00551855]
[1717549086918,1.44334815,70827.0,70826.0,0.00551855]
[1717549090322,1.3860866,70827.0,70826.0,0.00551855]
[1717549090570,1.44395752,70827.0,70826.0,0.00551855]
[1717549091186,1.77875752,70827.0,70826.0,0.00551855]
[1717549091378,2.18874782,70827.0,70826.0,0.00551855]
[1717549091639,2.31568223,70827.0,70826.0,0.00551855]
[1717549091854,2.2600978,70827.0,70826.0,0.00551855]
[1717549092071,2.31576191,70827.0,70826.0,0.00551855]
[1717549092561,2.1888275,70827.0,70826.0,0.00551855]
[1717549093228,2.06528399,70827.0,70826.0,0.00551855]
[1717549093420,2.18824138,70827.0,70826.0,0.00551855]
[1717549093845,2.18824138,70827.0,70822.0,0.00948199]
[1717549093846,0.14398092,70815.0,70791.0,0.012]
[1717549094070,0.14398092,70815.0,70802.0,0.067]
[1717549094071,0.41752437,70815.0,70802.0,0.067]
[1717549094274,0.51752437,70815.0,70802.0,0.067]
[1717549094477,1.40895652,70815.0,70802.0,0.067]
[1717549094600,1.41895652,70815.0,70802.0,0.067]
[1717549094801,1.33433991,70815.0,70802.0,0.067]
[1717549095206,1.32433991,70815.0,70802.0,0.067]
[1717549095455,1.32433991,70815.0,70804.0,0.067]
[1717549095656,1.42433991,70815.0,70804.0,0.067]
[1717549096474,1.43433991,70815.0,70804.0,0.067]
[1717549096720,0.706095,70812.0,70810.0,0.2404]
[1717549096935,1.03637041,70812.0,70810.0,0.2404]
[1717549098307,0.99407299,70812.0,70810.0,0.2404]
[1717549099890,1.05709793,70812.0,70810.0,0.2404]
[1717549100302,0.9936547,70812.0,70810.0,0.2404]
[1717549104582,0.99354203,70812.0,70810.0,0.2404]
[1717549107726,0.99354203,70812.0,70803.0,0.067]
[1717549107950,0.99354203,70812.0,70810.0,0.2431]
[1717549108963,0.99340637,70812.0,70810.0,0.2431]
[1717549113455,0.71096837,70812.0,70811.0,0.2347]
[1717549114045,0.71097087,70812.0,70811.0,0.2347]
[1717549117315,0.71097087,70812.0,70811.0,0.002]
[1717549117316,0.99340887,70812.0,70811.0,0.002]
[1717549120159,1.32568185,70812.0,70811.0,0.002]
[1717549120397,1.49611281,70812.0,70811.0,0.002]
[1717549120623,1.69399245,70812.0,70811.0,0.002]
[1717549120833,1.7996904,70812.0,70811.0,0.002]
[1717549121256,0.42648292,70802.0,70801.0,0.2452]
[1717549121469,0.71112152,70802.0,70801.0,0.2452]
[1717549121683,0.71129769,70802.0,70801.0,0.2452]
[1717549122134,0.99377469,70802.0,70801.0,0.2452]
[1717549122589,0.99100677,70802.0,70801.0,0.2452]
[1717549123005,0.99377469,70802.0,70801.0,0.2452]
[1717549124037,0.99100677,70802.0,70801.0,0.2452]
[1717549124448,0.68552977,70802.0,70801.0,0.2452]
[1717549125494,0.66813393,70802.0,70801.0,0.2452]
[1717549126147,0.38565693,70802.0,70801.0,0.246146]
[1717549128337,0.40219194,70802.0,70801.0,0.246146]
[1717549128540,0.0251405,70813.0,70801.0,0.246146]
[1717549128541,0.04228982,70814.0,70806.0,0.01]
[1717549128770,0.06343474,70815.0,70801.0,0.004946]
[1717549128771,0.04228982,70815.0,70814.0,0.2463]
[1717549129003,0.00086,70820.0,70815.0,0.2463]
[1717549129220,0.141211,70816.0,70813.0,0.07222824]
[1717549129444,0.141211,70816.0,70815.0,0.067]
[1717549129661,0.141211,70816.0,70815.0,0.303]
[1717549130088,0.241211,70816.0,70815.0,0.303]
[1717549130509,0.38562993,70816.0,70815.0,0.303]
[1717549131581,0.38839785,70816.0,70815.0,0.236]
[1717549131789,0.38839785,70816.0,70815.0,0.303]
[1717549131987,0.38562993,70816.0,70815.0,0.303]
[1717549132579,0.38562993,70816.0,70815.0,0.32023208]
[1717549133813,0.24441893,70816.0,70815.0,0.32023208]
[1717549134823,0.1,70816.0,70815.0,0.32023208]
[1717549135027,0.1,70819.0,70818.0,0.01723208]
[1717549135260,0.1,70819.0,70818.0,0.32393208]
[1717549135513,0.00086,70820.0,70819.0,0.25693208]
[1717549135718,0.00086,70820.0,70819.0,0.45693208]
[1717549136143,0.00086,70820.0,70819.0,0.59813708]
[1717549138048,0.00086,70820.0,70819.0,0.76553708]
[1717549138797,0.10086,70831.0,70830.0,0.01723208]
[1717549138798,0.00086,70831.0,70830.0,0.01723208]
[1717549139028,0.00086,70831.0,70830.0,0.57616162]
[1717549139243,0.00086,70831.0,70830.0,0.77616162]
[1717549139455,0.00086,70831.0,70830.0,0.77051508]
[1717549139716,0.4731,70847.0,70846.0,0.26193208]
[1717549139924,0.002,70849.0,70848.0,0.01723208]
[1717549140167,0.14641893,70849.0,70848.0,0.26193208]
[1717549140548,0.14641893,70849.0,70848.0,0.2547]
[1717549140949,0.14641893,70849.0,70848.0,0.26193208]
[1717549141536,0.24641893,70849.0,70848.0,0.26193208]
[1717549141703,0.102,70849.0,70848.0,0.26193208]
[1717549142149,0.102,70849.0,70848.0,0.2447]
[1717549142351,0.243145,70849.0,70848.0,0.2447]
[1717549142770,0.38756393,70849.0,70848.0,0.2447]
[1717549142971,0.141149,70847.0,70846.0,0.1674]
[1717549143198,0.38556793,70847.0,70846.0,0.1674]
[1717549143565,0.141151,70846.0,70843.0,0.01]
[1717549143769,0.1,70845.0,70843.0,0.01]
[1717549144256,0.14441893,70844.0,70843.0,0.01]
[1717549144480,0.24441893,70844.0,70843.0,0.01]
[1717549144696,0.24441893,70844.0,70843.0,0.01723208]
[1717549144916,0.24441893,70844.0,70842.0,0.1582]
[1717549145134,0.241157,70843.0,70842.0,0.1582]
[1717549146191,0.1,70843.0,70842.0,0.1682]
[1717549146413,0.002,70849.0,70848.0,0.01]
[1717549146628,0.002,70849.0,70848.0,0.01723208]
[1717549146629,0.14641893,70849.0,70848.0,0.01723208]
[1717549146835,0.24641893,70849.0,70848.0,0.01]
[1717549148994,0.24641893,70849.0,70848.0,0.25313208]
[1717549150281,0.24641893,70849.0,70848.0,0.2359]
[1717549150484,0.102,70849.0,70848.0,0.39427908]
[1717549150690,0.002,70849.0,70848.0,0.39427908]
[1717549151319,0.14641893,70849.0,70843.0,0.01]
[1717549151672,0.14441893,70848.0,70843.0,0.01]
[1717549151875,0.14718685,70848.0,70843.0,0.01]
[1717549152042,0.14718685,70848.0,70841.0,0.3191]
[1717549152275,0.14718685,70848.0,70841.0,0.1517]
[1717549152451,0.14718685,70848.0,70839.0,0.0755]
[1717549152452,0.00276792,70845.0,70839.0,0.0755]
[1717549152631,0.1,70847.0,70839.0,0.0755]
[1717549152632,0.14718685,70844.0,70839.0,0.0755]
[1717549152828,0.14441893,70844.0,70839.0,0.0755]
[1717549153038,0.14718685,70844.0,70839.0,0.0755]
[1717549153446,0.141161,70842.0,70839.0,0.0755]
[1717549153650,0.14441893,70841.0,70839.0,0.09273208]
[1717549153847,0.14441893,70841.0,70840.0,0.01723208]
[1717549154045,0.14441893,70841.0,70839.0,0.0755]
[1717549154230,0.14441893,70841.0,70837.0,0.01723208]
[1717549154430,0.14441893,70841.0,70836.0,0.01723208]
[1717549154632,0.14441893,70841.0,70837.0,0.01723208]
[1717549156611,0.28558093,70841.0,70837.0,0.01723208]
[1717549157283,0.28558093,70841.0,70838.0,0.01723208]
[1717549158127,0.28558093,70841.0,70837.0,0.01723208]
[1717549158985,0.14441893,70841.0,70834.0,0.076]
[1717549159201,0.14718685,70841.0,70834.0,0.076]
[1717549159377,0.141166,70839.0,70834.0,0.076]
[1717549159638,0.14441893,70838.0,70834.0,0.076]
[1717549160467,0.28558593,70838.0,70834.0,0.076]
[1717549161072,0.00276792,70836.0,70831.0,0.168346]
[1717549161280,0.141179,70832.0,70831.0,0.000946]
[1717549161476,0.28559793,70832.0,70831.0,0.000946]
[1717549161718,0.28509793,70832.0,70831.0,0.000946]
[1717549164983,0.57022385,70832.0,70831.0,0.000946]
[1717549165197,0.83672385,70832.0,70831.0,0.000946]
[1717549166770,1.14208185,70832.0,70831.0,0.000946]
[1717549170588,1.13931393,70832.0,70831.0,0.000946]
[1717549170759,1.14208185,70832.0,70831.0,0.000946]
[1717549171130,1.13931393,70832.0,70831.0,0.000946]
[1717549171334,0.97558185,70832.0,70831.0,0.000946]